Workbook

Sheet T.O.C.

Sheet 1. Soil Class (WSS)
A1: Soil Classification with the NRCS Web Soil Survey

Sheet 2. Seepage
A1: Seepage Loss Calculations
J4: Classification | K4: Seepage
A5: FILE NUMBER | B5: xx-xxxxx | H5: User Input | J5: GW | K5: 0.2
A6: REVIEWER | B6: Joe Agent | H6: Calculated value | J6: GP | K6: 0.2
A7: DATE | B7: 2000-01-01 | H7: Formula Explanations | J7: GM | K7: 0.2
J8: GC | K8: 0.2
A9: INPUTS | J9: SW | K9: 0.2
A10: Pond Surface Area (AC.) | C10: 5 | D10: AC. | J10: SP | K10: 0.2
J11: SM | K11: 0.2
A12: Pond Surface Area (SQ. FT.) | C12: =C10*43560 -> 217800 | D12: SQ. FT. | J12: OL | K12: 0.02
J13: ML | K13: 0.02
A14: I used the following method to obtain my Soil Classification information: | C14: NRCS Web Soil Survey | J14: SC | K14: 0.007
J15: CL | K15: 0.003
A16: My Soil Classification is | C16: GP | J16: MH | K16: 0.0003
A17: Suggested Seepage Rate (FT./DAY) | C17: =VLOOKUP(C16,Table1[],2,FALSE) -> 0.2 | D17: FT./DAY | J17: OH | K17: 0.0003
J18: PT | K18: 0.0003
A19: Formula: (Surface Area X Seepage Rate) X 7.48 = Gallons Per Day Loss | J19: CH | K19: 0.0003
J20: Lined | K20: 0
A21: Convert to GPD | C21: =(C17*C12)*7.48 -> 325828.8 | D21: GPD | J21: GrndWtr | K21: 0
A23: Total Seepage Loss (AFA) | C23: =C21*365/325850 -> 364.9762529 | D23: AFA
J24: Class Method
A25: Suggested Seepage Rates for Different Soil Types: | J25: NRCS Web Soil Survey
A26: GW, GP, GM, GC, SW, SP and SM (silty sand, sand silt mixtures and gravel mixtures) = 0.2 ft per day | J26: PondSoils Layer in GIS
A27: OL and ML (inorganic silts - very fine sands, silty, or clayey fine sands) = 0.02 ft per day | J27: Published Soil Surveys
A28: SC (clayey sands, sand clay mixtures) = 0.007 ft per day
A29: CL (Low to medium plasticity clays) = 0.003 ft per day
A30: MH, OH, PT and CH (high plasticity clays) = 0.0003 ft per day
A31: LINED PONDS (liners can be chemical, fabric, or bentonite) = 0 ft per day
A32: Ponds Intercepting Groundwater (excavated ponds filled by ground water) = 0 ft per day

Sheet 3. Evaporation
A1: Evaporation Loss Calculations
A4: FILE NUMBER | B4: ='2. Seepage'!B5:C5 -> xx-xxxxx
A5: REVIEWER | B5: ='2. Seepage'!B6:C6 -> Joe Agent
A6: DATE | B6: ='2. Seepage'!B7:C7 -> 2000-01-01
A8: User Input
A9: Calculated value
A10: Formula Explanations
A12: The acronyms used on the Kimberly Research Center website are defined below:
A14: P = Precipitation
A15: ET= Evapotranspiration
A16: Pd = Precipitation deficit
A17: Pd =ET-P
A22: Found at: | B22: http://data.kimberly.uidaho.edu/ETIdaho/
B24: Precipitation Deficit
B25: Station: | C25: Twin Falls 2 NNE (NWS -- 109294)
B26: Month | C26: mm/day¹ | D26: Days per month | E26: mm/Month
B27: Jan | C27: -1.34 | D27: 31 | E27: =IF(C27*D27>0,C27*D27,0) -> 0
B28: Feb | C28: -0.72 | D28: 28 | E28: =IF(C28*D28>0,C28*D28,0) -> 0
B29: March | C29: -0.29 | D29: 31 | E29: 0
B30: April | C30: 1.09 | D30: 30 | E30: 32.7
B31: May | C31: 1.77 | D31: 31 | E31: 54.87
B32: June | C32: 3.33 | D32: 30 | E32: 99.9
B33: July | C33: 4.41 | D33: 31 | E33: 136.71
B34: August | C34: 3.81 | D34: 31 | E34: 118.11
B35: September | C35: 2.28 | D35: 30 | E35: 68.4
B36: October | C36: 0.89 | D36: 31 | E36: 27.59
B37: November | C37: -1.27 | D37: 30 | E37: 0
B38: December | C38: -1.76 | D38: 31 | E38: 0
C40: Total mm/year = | E40: =SUM(E27:E38) -> 538.28
A42: [(mm/yr) ÷ (convert to feet) ] X (Surface area of pond, in acres) = Evaporation Loss in Acre Feet
A43: ( | B43: =E40 -> 538.28 | C43: ÷ | D43: 304.8 | E43: ) X | F43: ='2. Seepage'!C10 -> 5 | G43: = | H43: =(B43/D43)*F43 -> 8.830052493 | I43: AFA
B45: Surface Area of Pond is automatically carried over from the Seepage Loss Sheet.
A46: Example Data:

Sheet 4. Storage
A1: Total Storage Calculations
A2: FILE NUMBER | B2: ='2. Seepage'!B5:C5 -> xx-xxxxx | I2: User Input
A3: REVIEWER | B3: ='2. Seepage'!B6:C6 -> Joe Agent | I3: Calculated value
A4: DATE | B4: ='2. Seepage'!B7:C7 -> 2000-01-01 | I4: Formula Explanations
A7: Surface Area (AC.) | B7: ='2. Seepage'!C10 -> 5 | C7: "Surface Area" is automatically carried over from the "Seepage Loss" sheet.
A8: Average Pond Depth (FT.) | B8: 6.8 | C8: "Average Pond Depth" depicts the actual depth of the pond either measured or estimated. Note: If you know the maximum depth and not the average depth, the Field Examiner's Handbook suggests multiplying the maximum depth by 0.4 to get the average depth, or you can use any method that seems reasonable to attain average depth.
A9: Pond Capacity (AF) | B9: =B8*B7 -> 34 | C9: Pond Capacity is calculated by multiplying the Pond Surface Area by the Average Pond Depth. If you know the capacity, divide the capacity by surface area and enter the average pond depth in the space above. Note: If pond capacity is determined using a method shown on the "Pond Capacity" sheet, the user may need to modify the value of "Pond Capacity" (cell B9) manually. Note that if the value is modified manually, the formula will be altered for future use.
A11: Multiple Fill Volume Above Initial Fill to Fulfill From Storage Needs- "Multiple Fills" (AF) | B11: 5 | C11: The "Multiple Fill Volume Above Initial Fill" is the acre-feet of water required to meet a from storage component if the from storage component exceeds a one time fill. This section should not include the amount of water needed to fill the pond initially or the amount of water needed to maintain the pond level due to evaporation or seepage. For example: if a pond has a capacity of 5 acre feet and 2.5 acre feet of seepage and evaporation, but the pond is used for irrigation that requires 10 acre feet of from storage for the irrigation use, then you would insert 5 acre feet into this location (10 acre feet needed - 5 acre feet from the initial fill = 5 acre feet of additional storage needed). Note: You must have a "From Storage" component exceeding the initial fill on the permit to include a volume in this space.
A12: Estimated Seepage Loss (AF) | B12: ='2. Seepage'!C23 -> 364.9762529 | C12: The "Estimated Seepage Loss" is automatically carried over from the "Seepage Loss" sheet.
A13: Estimated Evaporation Loss (AF) | B13: ='3. Evaporation'!H43 -> 8.830052493 | C13: The "Estimated Evaporation Loss" is automatically carried over from the "Evaporation Loss" sheet.
A14: Total Volume Required (AF) | B14: =B9+B11+B12+B13 -> 412.8063054 | C14: The "Total Volume Required" is calculated by adding the Pond Capacity, Multiple Fills, Seepage Loss, and Evaporation Loss amounts to determine the total amount of storage required.
A16: Flow Rate into Pond (CFS) | B16: 1 | C16: The "Flow Rate into Pond" depicts the actual flow, either measured or estimated, into the pond. For offstream facilities, this will be equivalent to "diversion to storage" rate.
A17: Highest Daily Evaporation Rate From Evaporation Tab. (mm/Day) | B17: =MAX('3. Evaporation'!C27:C38) -> 4.41 | C17: This number is carried over from the "Evaporation Loss" sheet. It is the highest recorded number in the "Precipitation Deficit Table".
A18: Required Daily Maintenance Volume (AF/Day) | B18: =((B17/304.8)*B7)+(B12/365) -> 1.072277459 | C18: "Required Daily Maintenance Volume" is the maximum volume of water needed on any given day during the year to maintain pond volume. It is calculated by adding the highest daily evaporation loss to the average daily seepage loss in acre feet. The average daily seepage loss is calculated by dividing the "Estimated Seepage Loss" by 365 days. This is acceptable, since the seepage rate shouldn't vary throughout the season unless the pond completely freezes over during the winter months. The highest daily evaporation loss is calculated by dividing the Highest Daily Evaporation Rate by the 304.8 conversion factor and multiplying this number by the pond surface area to attain a combined daily acre feet requirement.
A19: Minimum Maintenance Flow (CFS) | B19: =B18/1.9835 -> 0.5405986686 | C19: The "Minimum Maintenance Flow" is the minimum amount of flow required to maintain the level of the pond. This number is determined by dividing the "Maximum Required Daily Maintenance Volume" by 1.9835. This flow can be used to determine if the flow rate into the pond is adequate to maintain the pond level.
A20: Days Required to Fill the Pond | B20: =B9/((B16-B19)*1.9835) -> 37.31250981 | C20: The "Days Required to Fill the Pond" is calculated by dividing the "Pond Capacity" by the "Flow Rate" minus "Minimum Maintenance Flow" multiplied by 1.9835. This section will assist you in determining if the flow rate being diverted to the pond is adequate to fill the pond while maintaining the pond level. The length of time to fill the pond will help determine if the flow rate is adequate for the size of pond being proposed. If this number is approximately 6 months (180 days) or more, the reviewer should have a discussion with the applicant to make sure he/she understands that it will take a significant length of time to fill the pond.
A21: Days Required to Fill the Pond at 13,000 Gallons per Day | B21: =(B9*325850)/(13000-(B18*325850)) -> -32.93355225 | C21: Some water users may want to fill a pond under the 13,000 gallons per day domestic exemption. The "Days Required to Fill the Pond at 13,000 Gallons per Day" is calculated by converting the "Pond Capacity" and the "Required Daily Maintenance Volume" to gallons. The "Pond Capacity" is then divided by 13,000 gallons minus the "Required Daily Maintenance Volume" in gallons to determine the number of days to fill pond. If this number is approximately 6 months (180 days) or more, the reviewer should have a discussion with the applicant to make sure he/she understands that it will take a significant length of time to fill the pond. Negative values indicate that the supply of 13,000 gallons per day is not enough volume to overcome the required daily maintenance volume; the pond will never fill.

Sheet 5. Capacity
A1: Pond Capacity Determination
A37: The surface area of a freeform polygons should be measured using aerial photography and ArcGIS.

Sheet 6. Tips
A1: Helpful Tips for Determining Pond Volumes

Sheet 1.1 Soil Class (GIS)
A1: Soil Classification with ArcMap
A2: Alternative to Soil Classification with the NRCS Web Soil Survey

Sheet 1.2 Soil Class (PDF)
A1: Soil Classification with Published Soil Surveys
A2: Alternative to Soil Classification with the NRCS Web Soil Survey
A6: FILE NUMBER | B6: xx-xxxxx | G6: User Input
A7: REVIEWER | B7: Joe Agent | G7: Calculated value
A8: DATE | B8: 2000-01-01 | G8: Formula Explanations
A11: County: | B11: Ada | C11: , Idaho
A13: 1. Navigate to the NRCS Soil Survey Website
A14: NRCS Published Soil Surveys for Idaho found at:
A15: http://www.nrcs.usda.gov/wps/portal/nrcs/surveylist/soils/survey/state/?stateId=ID
A17: Reviewer used the Survey entitled: | D17: Ada County Area
A19: 2. Use GIS and the Soil Survey to determine Soil Type
A20: Utilize ArcGIS to Obtain the Soil Symbol (may be a number or abbreviated name)
A21: The shapefile SSURGOOnePlan is found at X:\Spatial\Soils\SSURGOOnePlan\soils.shp
A23: Soil Symbol (GIS field MUSYM): | D23: 116 | F23: What if my Soil Symbol is 999?* (see box)
A24: Find the name of the soil in the Soil Legend. The Soil Legend is typically the last bookmark in the Soil Survey report.
A25: The Full Name of This Soil is: | D25: Payette-Quincy complex, 15 to 30 percent slopes
A27: 3. Use the Soil Survey to determine the USCS Classification
A28: Within the county NRCS Soil Survey report, click the bookmarked link to "Tables."
A29: Scroll down until you reach a table called "Engineering Properties and Classifications" or "Engineering Index Properties." The table is ordered by soil symbol and the soil name.
A30: Scroll down until you reach the soil which matches your soil symbol and name.
A31: The table lists the USCS Classification for each depth in the soil profile.
A32: Be sure to use the predominant soil classification for the pond depth where seepage occurs.
A33: If the pond has a greater depth than the soil survey, use data from the lowest depth reported.
A35: Pond Depth: | B35: 4 | C35: feet | D35: = | E35: =B35*12 -> 48 | F35: inches
A37: The Soil Survey states the soil USCS Classification at | E37: =E35 -> 48 | F37: inches is | G37: SM
